Cogmind - Beta 15 @@@ ROGUE MODE // 2025.05.23 @ 10:43:20 // Winter2022/Polymind Player: Demo Result: Destroyed by X7-WAL(M) with Barrage Gun Performance ------------- Evolutions (3) 1500 Regions Visited (7) 1400 Robots Destroyed (1) 5 Value Destroyed (34) 34 Prototype IDs (3) 60 Alien Tech Used (0) 0 Bonus (3965) 3965 TOTAL SCORE: 6164 Bonus ------- Polymind Skill 3465 Entered DSFs 500 Cogmind --------- Core Integrity 0/700 Matter 0/0 Energy 19/100 System Corruption 0% Temperature Cool (9) Movement Core (50) Location -7/DSF Parts ------- > --- POWER (1) -------- (None) > --- PROPULSION (2) --- (None) > --- UTILITY (2) ------ (None) > --- WEAPON (1) ------- (None) > --- INVENTORY (0) ---- (None) Peak State ------------ > --- POWER ------------ Light Angular Momentum Engine > --- PROPULSION ------- Carbon-fiber Leg Carbon-fiber Leg > --- UTILITY ---------- Improved Heat Sink Improved Heat Sink > --- WEAPON ----------- Beamcaster > --- INVENTORY -------- (None) [Rating: 22] Favorites ----------- Power Light Ion Engine Engine Light Ion Engine Power Core Nuclear Core Propulsion Wheel Treads Light Treads Leg VSS Leg Wheel Wheel Hover Unit Hover Unit Utility Improved Terrain Scanner Device Improved Terrain Scanner Storage Medium Storage Unit Processor Transport Network Coupler Hackware Hacking Suite Protection Hardened Medium Armor Plating Weapon Mining Laser Energy Gun Beamcaster Ballistic Gun Shotgun Special Weapon Mining Laser Special Melee Weapon Datajack Build | -11 -10 -10 -10 -9 -8 -7 -7 ------- Run | Yrd Mat Min Exi Min Mat Fac DSF Slots Evolved . | . . . . . . . . Power . | . . . . . . . . Propulsion . | . . . . . . . . Utility . | . . . . . . . . Weapon . | . . . . . . . . Parts Attached . | . . . . . . . . Power . | . . . . . . . . Engine . | . . . . . . . . Core . | . . . . . . . . Reactor . | . . . . . . . . Propulsion . | . . . . . . . . Treads . | . . . . . . . . Leg . | . . . . . . . . Wheel . | . . . . . . . . Hover . | . . . . . . . . Flight . | . . . . . . . . Utility . | . . . . . . . . Device . | . . . . . . . . Storage . | . . . . . . . . Processor . | . . . . . . . . Hackware . | . . . . . . . . Protection . | . . . . . . . . Artifact . | . . . . . . . . Weapon . | . . . . . . . . Energy Gun . | . . . . . . . . Energy Cannon . | . . . . . . . . Ballistic Gun . | . . . . . . . . Ballistic Cannon . | . . . . . . . . Launcher . | . . . . . . . . Special Weapon . | . . . . . . . . Impact Weapon . | . . . . . . . . Slashing Weapon . | . . . . . . . . Piercing Weapon . | . . . . . . . . Special Melee Weapon . | . . . . . . . . Unidentified Prototypes . | . . . . . . . . Parts Lost 12 | . . . . . 4 . 8 Power 3 | . . . . . 1 . 2 Propulsion 4 | . . . . . 2 . 2 Utility 3 | . . . . . . . 3 Weapon 2 | . . . . . 1 . 1 Highest Loss Streak 6 | . . . . . 4 . 6 To Critical Strikes . | . . . . . . . . Average Backups . | . 4 4 . . . . . Power . | . 4 4 . . . . . Propulsion . | . . . . . . . . Utility . | . . . . . . . . Weapon . | . . . . . . . . Tool/Special . | . . . . . . . . Unused Backups 6 | . . 6 . . . . . Power 6 | . . 6 . . . . . Propulsion . | . . . . . . . . Utility . | . . . . . . . . Weapon . | . . . . . . . . Tool/Special . | . . . . . . . . Average Slot Usage (%) 93 | . 77 100 100 100 80 20 35 Engine 14 | . 12 16 16 16 16 . . Treads 5 | . 25 26 . . . . . Wheel 23 | . . 6 33 33 7 . . Device 26 | . 12 19 33 33 7 . 5 Storage 2 | . 12 12 . . . . . Processor 2 | . 12 12 . . . . . Special Weapon 11 | . . 3 16 16 3 . . Peak Build Rating 22 | . 7 8 8 8 8 3 22 Average Rating 7 | . 5 7 8 8 6 3 6 On Entrance 4 | . . 7 8 8 8 3 3 Naked Turns 106 | . 16 . . . . . 90 Heaviest Build 22 | . 15 15 6 6 6 . 22 Greatest Support 46 | 3 46 46 20 20 20 3 30 Greatest Overweight (x) 1 | . . . . . . . 1 Average Overweight (x) . | . . . . . . . . Largest Inventory Capacity 6 | . 6 6 . . 1 1 1 Average Capacity 1 | . 4 4 . . . 1 . Most Carried 6 | . 6 6 . . . . . Average Carried 1 | . 4 4 . . . . . Final Capacity 6 | . 6 . . . 1 1 . Final Carried 6 | . 6 . . . . . . Class Distribution -------------------- 72% | Tunneler 16% | Hauler 4% | Cogmind 3% | Operator Dominant Class ---------------- Hauler | -10/Materials Hauler | -10/Mines Tunneler | -10/Exiles Tunneler | -9/Mines Operator | -8/Materials Operator | -7/Factory Cogmind | -7/DSF Resources | -11 -10 -10 -10 -9 -8 -7 -7 ----------- Run | Yrd Mat Min Exi Min Mat Fac DSF Matter Collected 14 | . . . . . . . 14 Remotely . | . . . . . . . . Salvage Created . | . . . . . . . . Parts . | . . . . . . . . Haulers Intercepted . | . . . . . . . . Recyclers Shooed . | . . . . . . . . Parts Field Recycled . | . . . . . . . . Retrieved Matter . | . . . . . . . . Parts Self-Destructed . | . . . . . . . . Prevented . | . . . . . . . . Kills | -11 -10 -10 -10 -9 -8 -7 -7 ------- Run | Yrd Mat Min Exi Min Mat Fac DSF Combat Hostiles Destroyed 1 | . . 1 . . . . . Melee 1 | . . 1 . . . . . Classes Destroyed 1 | . . 1 . . . . . Grunt 1 | . . 1 . . . . . Best Kill Streak 1 | . . 1 . . . . . Combat Bots Only 1 | . . 1 . . . . . Max Kills in Single Turn 1 | . . 1 . . . . . Gunslinging . | . . . . . . . . Exploded . | . . . . . . . . Melee 1 | . . 1 . . . . . Uniques/NPCs Destroyed . | . . . . . . . . Combat | -11 -10 -10 -10 -9 -8 -7 -7 -------- Run | Yrd Mat Min Exi Min Mat Fac DSF Hostile Shots Fired 118 | . . 3 . . 35 . 80 Missed 41 | . . 2 . . 15 . 24 Hits 77 | . . 1 . . 20 . 56 Projectile 77 | . . 1 . . 20 . 56 Critical Strikes 6 | . . . . . . . 6 Damage Taken 1920 | . . 11 . . 369 . 1540 Core 945 | . . . . . 244 . 701 Absorbed by Shields . | . . . . . . . . Core Remaining (%) 85 | 100 . . . 100 55 . . Volleys Fired 45 | . . . 30 . . . 15 Largest 2 | . . . 1 . . . 2 Hottest 100 | . . . 100 . . . 75 Shots Fired 51 | . . . 30 . . . 21 Gun 21 | . . . . . . . 21 Cannon . | . . . . . . . . Launcher . | . . . . . . . . Special 30 | . . . 30 . . . . Kinetic 19 | . . . . . . . 19 Thermal 32 | . . . 30 . . . 2 Explosive . | . . . . . . . . Electromagnetic . | . . . . . . . . Robot Hit Streak 4 | . . . . . . . 4 Robot Miss Streak 4 | . . . . . . . 4 Penetration Max . | . . . . . . . . Secondary Targets . | . . . . . . . . Shots Hit Robots 18 | . . . . . 1 . 17 Core Hits 4 | . . . . . . . 4 Critical Kills . | . . . . . . . . Critical Parts Destroyed . | . . . . . . . . Critical Strikes 1 | . . . . . . . 1 Burn 1 | . . . . . . . 1 Melee Attacks 2 | . . . . . 2 . . Impact . | . . . . . . . . Slashing . | . . . . . . . . Piercing . | . . . . . . . . Sneak Attacks 1 | . . . . . 1 . . Combat Hostiles . | . . . . . . . . Follow-up Attacks . | . . . . . . . . Damage Inflicted 315 | . . 3 . . . . 312 Guns 306 | . . . . . . . 306 Cannons . | . . . . . . . . Explosions . | . . . . . . . . Melee . | . . . . . . . . Ramming 9 | . . 3 . . . . 6 Kinetic 264 | . . . . . . . 264 Thermal 42 | . . . . . . . 42 Explosive . | . . . . . . . . Electromagnetic . | . . . . . . . . Impact . | . . . . . . . . Slashing . | . . . . . . . . Piercing . | . . . . . . . . Highest Corruption . | . . . . . . . . Average Corruption . | . . . . . . . . Corruption Purged . | . . . . . . . . Corruption Blocked . | . . . . . . . . Overload Shots . | . . . . . . . . Overflow Damage . | . . . . . . . . Projectiles . | . . . . . . . . Explosions . | . . . . . . . . Melee . | . . . . . . . . Knockbacks . | . . . . . . . . Impact . | . . . . . . . . Kinetic . | . . . . . . . . Secondary . | . . . . . . . . Self-Inflicted Damage 3 | . . . . . . . 3 Shots . | . . . . . . . . Rammed 5 | . . 4 . . . . 1 Targets Rammed 6 | . . 5 . . . . 1 Kicked . | . . . . . . . . Crushed 1 | . . 1 . . . . . Highest Temperature 335 | . . 1 335 . 8 . 4 Average Temperature 65 | . . 1 65 . 8 . 4 Received Heat Transfer 262 | . . 6 . . 63 . 193 Effects 2 | . . . 2 . . . . Shutdowns 1 | . . . 1 . . . . Energy Bleed 1 | . . . 1 . . . . Siege Activations . | . . . . . . . . Martial Activations . | . . . . . . . . Shielding Activations . | . . . . . . . . Robots Disrupted . | . . . . . . . . Combat Hostiles . | . . . . . . . . Robots Corrupted . | . . . . . . . . Combat Hostiles . | . . . . . . . . Parts Fried . | . . . . . . . . Impact Corruptions . | . . . . . . . . Robots Melted . | . . . . . . . . Combat Hostiles . | . . . . . . . . Parts Melted . | . . . . . . . . Heat Transferred 148 | . . . . . . . 148 Parts Sabotaged . | . . . . . . . . Parts Stolen . | . . . . . . . . Parts Stripped . | . . . . . . . . Power Chain Reactions . | . . . . . . . . Alert | -11 -10 -10 -10 -9 -8 -7 -7 ------- Run | Yrd Mat Min Exi Min Mat Fac DSF Maximum Alert Level . | . . . . . . . . Low Security (%) 100 | 100 100 100 . 100 100 100 100 Level 1 . | . . . . . . . . Level 2 . | . . . . . . . . Level 3 . | . . . . . . . . Level 4 . | . . . . . . . . Level 5 . | . . . . . . . . High Security . | . . . . . . . . Max Security . | . . . . . . . . Peak Influence 53 | . . 53 . . 24 9 45 Initial 9 | . . . . . . 9 9 Average 5 | . . 4 . . 8 9 13 Influence Increases 195 | . . 92 . . 54 4 45 Destroy 0b10 Robot/C 80 | . . 80 . . . . . Destroy Leader 10 | . . 10 . . . . . Allied During Kill 2 | . . 2 . . . . . Successful Hack 28 | . . . . . 24 4 . Lose Combat Pursuer 75 | . . . . . 30 . 45 Influence Decreases 181 | . . 83 9 . 34 11 44 Entered New Map 24 | . . . 9 . . 11 4 Time Decay 62 | . . 42 . . 20 . . Lost Part 37 | . . . . . 14 . 23 Lost Ally 40 | . . 40 . . . . . Miscellaneous 18 | . . 1 . . . . 17 Squads Dispatched 2 | . . . . . 1 . 1 Investigation . | . . . . . . . . Extermination . | . . . . . . . . Reinforcement 2 | . . . . . 1 . 1 Assault . | . . . . . . . . Garrison . | . . . . . . . . Intercept . | . . . . . . . . Searches Triggered . | . . . . . . . . Construction Impeded . | . . . . . . . . Haulers Reinforced . | . . . . . . . . Active Scanning Responses . | . . . . . . . . Cargo Convoy Interrupts . | . . . . . . . . Stealth | -11 -10 -10 -10 -9 -8 -7 -7 --------- Run | Yrd Mat Min Exi Min Mat Fac DSF Distress Signals 2 | . . . . . 2 . . Communications Jammed . | . . . . . . . . Distress Signals . | . . . . . . . . Times Spotted 50 | . . 2 . . 12 . 36 Peak Tracking Total 15 | . . 1 . . 13 . 15 Tactical Retreats 5 | . . 1 . . 1 . 3 Traps | -11 -10 -10 -10 -9 -8 -7 -7 ------- Run | Yrd Mat Min Exi Min Mat Fac DSF Traps Triggered . | . . . . . . . . Indirectly . | . . . . . . . . Trap Hack Attempts . | . . . . . . . . Triggered . | . . . . . . . . Disarmed . | . . . . . . . . Reprogrammed . | . . . . . . . . Reused . | . . . . . . . . Traps Extracted . | . . . . . . . . Installed . | . . . . . . . . Triggered . | . . . . . . . . Machines | -11 -10 -10 -10 -9 -8 -7 -7 ---------- Run | Yrd Mat Min Exi Min Mat Fac DSF Machines Disabled . | . . . . . . . . Max in Single Turn . | . . . . . . . . Machines Repaired . | . . . . . . . . Machines Dismantled . | . . . . . . . . Machines Sabotaged . | . . . . . . . . Overloaded Fab Kills . | . . . . . . . . Hacking | -11 -10 -10 -10 -9 -8 -7 -7 --------- Run | Yrd Mat Min Exi Min Mat Fac DSF Machines Accessed 7 | . . . 4 1 1 1 . Terminals 2 | . . . . . 1 1 . Fabricators . | . . . . . . . . Repair Stations . | . . . . . . . . Recycling Units . | . . . . . . . . Scanalyzers . | . . . . . . . . Garrison Access . | . . . . . . . . Total Hacks 10 | . . . 4 1 3 2 . Successful 8 | . . . 4 1 2 1 . Failed 2 | . . . . . 1 1 . Catastrophic . | . . . . . . . . Database Lockouts . | . . . . . . . . Manual 3 | . . . 2 . 1 . . Terminals 5 | . . . . . 3 2 . Fabricators . | . . . . . . . . Repair Stations . | . . . . . . . . Recycling Units . | . . . . . . . . Scanalyzers . | . . . . . . . . Garrison Access . | . . . . . . . . Terminal Hacks 8 | . . . 4 1 2 1 . Record 4 | . . . 4 . . . . Prototype ID Bank 1 | . . . . . 1 . . Open Door 1 | . . . . 1 . . . Open DSF 1 | . . . . . . 1 . Emergency Access Points 1 | . . . . . 1 . . Fabricator Hacks . | . . . . . . . . Repair Station Hacks . | . . . . . . . . Recycling Unit Hacks . | . . . . . . . . Scanalyzer . | . . . . . . . . Garrison Access Hacks . | . . . . . . . . Unauthorized Hacks . | . . . . . . . . Terminals . | . . . . . . . . Fabricators . | . . . . . . . . Repair Stations . | . . . . . . . . Recycling Units . | . . . . . . . . Scanalyzers . | . . . . . . . . Garrison Access . | . . . . . . . . Data Cores Recovered . | . . . . . . . . Used . | . . . . . . . . Hacking Detections 1 | . . . . . 1 . . Full Trace Events . | . . . . . . . . Feedback Events . | . . . . . . . . Feedback Blocked . | . . . . . . . . Robot Schematics Acquired . | . . . . . . . . Robots Built . | . . . . . . . . Authchips . | . . . . . . . . Time . | . . . . . . . . Total Robot Build Rating . | . . . . . . . . Part Schematics Acquired . | . . . . . . . . Parts Built . | . . . . . . . . Authchips . | . . . . . . . . Time . | . . . . . . . . Total Part Build Rating . | . . . . . . . . Parts Repaired . | . . . . . . . . Time . | . . . . . . . . Parts Recycled . | . . . . . . . . Recycled Matter . | . . . . . . . . Retrieved Matter . | . . . . . . . . Retrieved Components . | . . . . . . . . Parts Scanalyzed . | . . . . . . . . Part Schematics Acquired . | . . . . . . . . Parts Damaged . | . . . . . . . . Bothacking | -11 -10 -10 -10 -9 -8 -7 -7 ------------ Run | Yrd Mat Min Exi Min Mat Fac DSF Used RIF Installer . | . . . . . . . . Robots Hacked 4 | . 1 . . . 2 . 1 Non-combat 3 | . 1 . . . 2 . . Combat 1 | . . . . . . . 1 Robot Hacks Applied 4 | . 1 . . . 2 . 1 no_distress 1 | . . . . . 1 . . locate_stockpiles 1 | . 1 . . . . . . find_terminals 1 | . . . . . 1 . . find_shortcuts 1 | . . . . . . . 1 Relay Couplers Released . | . . . . . . . . Fabnet Peak Effective % . | . . . . . . . . Robots Rewired . | . . . . . . . . Allies Hacked . | . . . . . . . . Hacks Repelled . | . . . . . . . . Allies | -11 -10 -10 -10 -9 -8 -7 -7 -------- Run | Yrd Mat Min Exi Min Mat Fac DSF Total Allies 2 | . . 2 . . . . . Largest Group 2 | . . 2 . . . . . Highest-Rated Group 41 | . . 41 . . . . . Highest-Rated Ally 31 | . . 31 . . . . . Total Orders . | . . . . . . . . Ally Attacks 9 | . . 9 . . . . . Total Damage 128 | . . 128 . . . . . Kills 3 | . . 3 . . . . . Allies Corrupted . | . . . . . . . . Allies Melted . | . . . . . . . . Intel | -11 -10 -10 -10 -9 -8 -7 -7 ------- Run | Yrd Mat Min Exi Min Mat Fac DSF Active Infowar (turns) 2356 | . 68 476 1577 221 14 . . Terrain 1915 | . . 103 1577 221 14 . . Seismic 1915 | . . 103 1577 221 14 . . T.N.C. 441 | . 68 373 . . . . . Robot Analysis Total 5 | . 1 1 . . 1 . 2 Derelict Logs Recovered . | . . . . . . . . Drone Launches . | . . . . . . . . Drone Recoveries . | . . . . . . . . Exploration | -11 -10 -10 -10 -9 -8 -7 -7 ------------- Run | Yrd Mat Min Exi Min Mat Fac DSF Turns Passed 2637 | 10 86 476 1577 221 84 7 176 Spaces Moved 2160 | 20 73 183 1246 252 138 13 235 Core 316 | 20 30 . . . 49 13 204 Treads 115 | . 43 72 . . . . . Legs 31 | . . . . . . . 31 Wheels 1626 | . . 111 1246 252 17 . . Hover 72 | . . . . . 72 . . Flight . | . . . . . . . . Fastest Speed 50 | 50 50 80 80 80 50 50 50 Average Speed 79 | 50 114 111 80 80 56 50 55 Slowest Speed 180 | 50 160 160 80 80 80 50 180 Overloaded Moves . | . . . . . . . . Propulsion Burnouts . | . . . . . . . . Robots Hopped . | . . . . . . . . Potential Cave-ins . | . . . . . . . . Cave-ins Triggered . | . . . . . . . . Exploration Rate (%) 47 | 3 24 46 96 45 24 . 95 Regions Visited 7 Branch Regions 3 Pre-discovered Areas . | . . . . . . . . Known Exits Taken 1 | . . . . . . 1 . Unknown Exits Taken 6 | 1 1 1 1 1 1 . . Scrap Searched . | . . . . . . . . Spaces Dug 5 | . . . 5 . . . . Terrain Destroyed 12 | . . . 12 . . . . Melee . | . . . . . . . . Projectile 12 | . . . 12 . . . . AOE . | . . . . . . . . Terrain Rammed . | . . . . . . . . Walls Destroyed . | . . . . . . . . Machines Disabled . | . . . . . . . . Actions | -11 -10 -10 -10 -9 -8 -7 -7 --------- Run | Yrd Mat Min Exi Min Mat Fac DSF Total 2964 | 19 75 451 1736 271 141 12 259 Wait 732 | . 3 250 461 11 2 . 5 Move 2153 | 19 72 182 1245 251 137 12 235 Hop . | . . . . . . . . Pick Up . | . . . . . . . . Fast Attach . | . . . . . . . . Attach . | . . . . . . . . Detach . | . . . . . . . . Swap . | . . . . . . . . Drop . | . . . . . . . . Fire 45 | . . . 30 . . . 15 Melee 2 | . . . . . 2 . . Ram 1 | . . . . . . . 1 Kick . | . . . . . . . . Crush 5 | . . 5 . . . . . Escape Stasis . | . . . . . . . . Rewire 4 | . . 1 . . . . 3 Trap . | . . . . . . . . Miscellaneous 22 | . . 13 . 9 . . . Route ------- -11/Scrapyard -10/Materials -10/Mines (discovered 2 exits: [*Mat] / *Exi) -10/Exiles (discovered 2 exits: *Min x2) -9/Mines -8/Materials -7/Factory -7/DSF (discovered 1 exit: [*Fac]) History --------- Turn | Location | Event 5 | -11/Scrapyard | Discovered new exit (range 13) 11 | -11/Scrapyard | Entered Materials 77 | -10/Materials | Discovered new exit (range 13) 97 | -10/Materials | Entered Mines 136 | -10/Mines | Discovered new exit (range 11) 204 | -10/Mines | Excavation squad dispatched 204 | -10/Mines | A large section of the Mines collapsed 454 | -10/Mines | Excavation squad dispatched 515 | -10/Mines | Deemed a non-threat by the Exiles lab entrance 515 | -10/Mines | Discovered new exit (range 5) 573 | -10/Mines | Entered Exiles 573 | -10/Exiles | Found Exiles lab abandoned 1094 | -10/Exiles | Discovered new exit (range 14) 1190 | -10/Exiles | Discovered new exit (range 14) 2150 | -10/Exiles | Entered Mines 2251 | -9/Mines | Met a Derelict who couldn't figure out how to use a Trap Extractor 2361 | -9/Mines | Discovered new exit (range 10) 2371 | -9/Mines | Entered Materials 2453 | -8/Materials | Discovered new exit (range 5) 2455 | -8/Materials | Entered Factory 2462 | -7/Factory | Identified exit to DSF 2462 | -7/Factory | Entered DSF 2474 | -7/DSF | Lost 4 parts (1p2n1w) 2515 | -7/DSF | Additional patrols routed to DSF 2535 | -7/DSF | Wild Derelicts raided the area 2544 | -7/DSF | Discovered new exit (range 16) 2575 | -7/DSF | Lost 6 parts (1p2n2u1w) 2624 | -7/DSF | Core integrity fell below 50% 2637 | -7/DSF | Core integrity fell below 20% 2638 | -7/DSF | Destroyed by X7-WAL(M) with Barrage Gun Last Messages --------------- 02544_ VSS Leg destroyed. 02544_ Lost control of X-57 Shotgunner. 02544_ EXIT=FOUND 02596_ C-30 ARC bursts open, deploying its payload. 02596_ B-48 Gladiator unfolds itself. 02596_ G-47 Trooper unfolds itself. 02599_ G-47 Trooper destroyed. 02628_ Acquired 33 Protomatter. 02628_ Knocked back. 02629_ Took control of BB-GL3(g). 02629_ Extracted analysis data for Thug. 02630_ Knocked back. 02630_ Lgt. Angular Momentum Engine destroyed. 02630_ Imp. Heat Sink destroyed. 02632_ Z8-DDH(M) suffers critical hit (Burn). 02633_ Knocked back. 02635_ Released control of BB-GL3(g). 02637_ BB-GL3(g) reactivates. 02637_ Slammed into 81-9E3(b). Map ----- +----------------------------------------------------+ | | | | | | | | | | | | | | | | | | | | | | | | | | | | | | | | | | | ????????????????????????????????????????????? | | ????????????????????????????????????????????? | | ????????????????????????????????????????????? | | ????????????????????????????????????????????? | | ????""???????????????????????????""?????????? | | ????#"???????????????????????????"#?????????? | | ?####"##???????#########???????##"####??????? | | ?#"""""######### !!#######?#"""""#??????? | | ?#"""""##[[# # !!#!@!#!!##"""""#??????? | | ##"" %b = * %%<""##"????? | | """" M %%g%iMM |%= =!%"""""????? | | ?#"" ##[[#[[[### g###!!!#!!##%[=""##?????? | | ?### ###[[#[[[### *"##!!!#!!### ###??????? | | ??## ########## %[* #####?#### ##???????? | | ??#[ [[#??????# %%= #??????#!! !#???????? | | ??#[ [[#??????# #??????#!! !#???????? | | ??## ###??????### ###??????### ##???????? | | ??#[ [[#??????#== !!#??????#!! !#???????? | | ??#[ [[#??????#== !!#??????#!! !#???????? | | ??#[ [[#??????#== !!???????#!! !#???????? | | ?### ############ ############ ###??????? | | ?#!! ## #!!!###% ###===#!!!## !!#??????? | | ?#!! ## #!!!##[% ##===#!!!## !!#??????? | | ?#== = #??????? | | ?#==% %%!% #??????? | | ?#== !! #??????? | | ?#!! ## #***##% ##!!!# ## !!#??????? | | ?#!! ## #***### ###!!!# ## !!#??????? | | ?### ############ #################??????? | | ??# !!#??????#!! [[#????????????????????? | | ??# !!#??????#!!^ [[#????????????????????? | | ??# !!#??????#!! [[#????????????????????? | | ??## ###??????### ###????????????????????? | +----------------------------------------------------+ Best States ------------- Heat Dissipation 48 Energy Generation 23 Energy Capacity 190 Matter Stores 192 Matter Capacity 200 Sight Range 16 Terrain Scan Range 16 Terrain Scan Density 10 Additional Mass Support 6 Armor Coverage 225 Evasion (%) 57 Recoil Reduction 2 Offensive Hacking 10 Item Schematics ----------------- None Robot Schematics ------------------ None Fabricated ------------ Nothing Repaired ---------- Nothing Alien Tech Used ----------------- None Achievements -------------- None Challenges ------------ None Polymind | -11 -10 -10 -10 -9 -8 -7 -7 ---------- Run | Yrd Mat Min Exi Min Mat Fac DSF Hosts 5 | . 1 1 . . 1 . 2 Combat Hostiles 2 | . . . . . . . 2 Allies . | . . . . . . . . Unique Host Classes 5 | . 1 1 . . 1 . 2 Average Host Suspicion 50 | . 11 47 55 17 76 2 71 Unsuspicious Activity 186 | . 2 67 . 45 12 5 55 Returns to Shadow 1 | . . 1 . . . . . Fuzzy Dispatches . | . . . . . . . . Protomatter Created 338 | . . 29 . 10 . . 299 Used 87 | . 5 5 . . 5 . 72 Decayed 177 | . . 18 . . . . 159 Highest Spend 45 | . 5 5 . . 5 . 45 Top 5 Hosts by Kills: A-02 Transporter (-10/Materials: 1) Game ------ Seed HeatMachineLauncher Manual? 0 Play Time 00:19:07 Cumulative 182.7 hours Start 2025.05.23 @ 10:25:38 End 2025.05.23 @ 10:43:20 Sessions 1 Manual Loads 0 Difficulty Rogue Special Mode Winter2022/Polymind Game No. 205 Rogue 205 Adventurer 0 Explorer 0 Win Type - Total 1 Types 1/0/0/0/0/0/0/0/0/0 Lore% 70 Gallery% 70 Achievement% 61 Wizard Run 0 Options --------- Layout 1 ASCII 0 Keyboard 0 Movement Numpad Keybinds 0 Fullscreen 1 Font 24/Smallcaps Map View 50x35 Zoom Use 0% Tactical HUD 1 Map Filters NONE Filters NONE Steam 1 RUN: 53d0f51a-5c62-47fd-b0b2-b7b690a2ecca